bitfinex/quotes_ETHUSD_20260313
["timestamp","ask_amount","ask_price","bid_price","bid_amount"]
[1773399016775,0.52830297,2131.4,2130.5,1.555]
[1773399017066,0.52830297,2131.4,2130.4,0.53859612]
[1773399017267,0.52830297,2131.4,2130.6,1.555]
[1773399017664,1.70129597,2131.3,2130.6,2.72834362]
[1773399018203,1.70129597,2131.3,2130.6,1.555]
[1773399018674,0.52830297,2131.2,2130.7,1.556]
[1773399018878,1.172993,2131.3,2130.7,1.556]
[1773399019947,4.69197203,2131.4,2130.7,1.556]
[1773399020361,1.17293797,2131.4,2130.7,3.26791647]
[1773399021064,1.17293797,2131.4,2130.8,1.559]
[1773399021065,0.50149398,2131.3,2130.8,1.559]
[1773399022076,1.17304804,2131.2,2130.8,1.559]
[1773399022478,1.17293797,2131.4,2130.8,2.73226104]
[1773399022792,1.17293797,2131.4,2130.8,3.26282044]
[1773399023001,4.69111301,2131.7,2130.8,3.26282044]
[1773399023002,4.69122014,2131.7,2130.9,0.5305594]
[1773399023179,5.19271412,2131.7,2130.9,0.5305594]
[1773399023374,1.67426688,2131.7,2130.9,0.5305594]
[1773399024093,1.67426688,2131.7,2131.0,1.17315814]
[1773399024392,1.67426688,2131.7,2130.9,1.70372786]
[1773399025800,0.002,2131.1,2130.9,1.70372786]
[1773399026014,1.67426688,2131.7,2130.9,1.70372786]
[1773399026370,0.002,2131.3,2130.9,1.70372786]
[1773399026691,0.002,2131.3,2130.7,0.001]
[1773399026692,0.002,2131.3,2131.0,1.562]
[1773399027061,1.67624567,2131.8,2131.1,0.5305594]
[1773399027285,1.17475169,2131.8,2131.1,0.5305594]
[1773399028497,1.67624567,2131.8,2131.1,1.17306169]
[1773399029085,1.67624567,2131.8,2131.2,1.563]
[1773399029588,0.50149398,2131.7,2131.2,1.563]
[1773399030500,1.17282792,2131.6,2131.1,1.17307317]
[1773399030700,1.17282792,2131.6,2131.3,1.564]
[1773399031391,1.67430561,2131.7,2131.3,1.564]
[1773399031698,1.67430561,2131.7,2131.4,1.564]
[1773399032090,1.17281163,2131.7,2131.4,1.564]
[1773399032704,0.50149398,2131.7,2130.9,4.69268247]
[1773399032908,0.50149398,2131.7,2131.0,1.564]
[1773399034699,1.17282792,2131.6,2131.0,2.73714481]
[1773399035801,1.6743219,2131.6,2130.9,1.17318888]
[1773399036101,1.6743219,2131.6,2131.1,1.563]
[1773399039686,1.17282792,2131.6,2131.1,1.563]
[1773399040186,1.17282792,2131.6,2131.2,0.001]
[1773399040503,0.002,2131.5,2131.2,0.001]
[1773399041778,0.002,2131.7,2131.3,0.5305594]
[1773399041998,1.17262932,2132.0,2131.4,0.5305594]
[1773399042320,0.50149398,2131.9,2131.2,0.5315594]
[1773399042477,0.50149398,2131.9,2131.3,1.56]
[1773399043578,1.67420132,2131.9,2131.3,2.73297653]
[1773399043774,1.17270734,2131.9,2131.3,3.26353593]
[1773399044584,1.17265218,2132.0,2131.4,0.5305594]
[1773399045205,1.17259141,2132.1,2131.4,0.5305594]
[1773399045804,4.69006642,2132.2,2131.5,1.17288294]
[1773399046104,5.22057098,2132.2,2131.5,1.17288294]
[1773399047515,5.22057098,2132.2,2131.5,1.69906152]
[1773399047684,1.70300244,2132.2,2131.6,0.52617858]
[1773399048240,7.16775615,2132.7,2131.6,0.52617858]
[1773399048241,0.53050456,2132.4,2131.6,0.52617858]
[1773399049195,1.70278253,2132.6,2131.6,0.52617858]
[1773399049804,1.70278253,2132.6,2131.8,0.52617858]
[1773399050286,1.70278253,2132.6,2131.7,1.1727729]
[1773399050287,1.70278253,2132.6,2131.9,2.08317858]
[1773399051089,1.70278253,2132.6,2132.0,0.53307928]
[1773399053195,1.70278253,2132.6,2131.9,1.557]
[1773399053196,0.50091573,2132.5,2131.8,1.556]
[1773399054592,0.50091573,2132.5,2131.3,6.59217238]
[1773399054793,1.17227797,2132.6,2131.4,1.555]
[1773399054794,0.50091573,2132.4,2131.4,1.555]
[1773399054988,0.50091573,2132.4,2131.2,1.70711107]
[1773399054989,0.50091573,2132.4,2131.5,1.555]
[1773399055192,0.50091573,2132.3,2131.5,1.555]
[1773399055392,0.50091573,2132.1,2131.5,3.26095464]
[1773399055687,1.17249788,2132.2,2131.6,0.53307928]
[1773399055900,1.17249788,2132.2,2131.8,0.001]
[1773399056119,0.50091573,2132.1,2131.8,0.001]
[1773399056605,0.50091573,2132.1,2131.4,1.66098837]
[1773399057397,1.17260787,2132.0,2131.4,1.66098837]
[1773399057707,1.67351262,2132.1,2131.4,1.66098837]
[1773399057908,1.67351262,2132.1,2131.5,2.08707928]
[1773399058113,1.17259689,2132.1,2131.5,2.08707928]
[1773399058622,1.67351262,2132.1,2131.5,1.554]
[1773399058912,1.67347282,2132.1,2131.5,2.05164432]
[1773399059116,5.19079345,2132.3,2131.5,2.05164432]
[1773399059425,1.67533702,2132.4,2131.7,0.49764432]
[1773399059628,1.67530939,2132.4,2131.7,0.49764432]
[1773399059837,0.50291573,2132.4,2131.7,0.49764432]
[1773399060032,1.67532375,2132.4,2131.7,0.49764432]
[1773399061521,0.50091573,2132.3,2131.8,1.553]
[1773399062033,1.17440802,2132.4,2131.8,1.553]
[1773399062730,1.67532375,2132.4,2131.8,1.553]
[1773399063729,1.17440473,2132.4,2131.9,1.552]
[1773399065336,1.67532046,2132.4,2131.9,1.552]
[1773399066837,1.67532046,2132.4,2131.8,1.66671621]
[1773399067041,1.67532046,2132.4,2131.9,1.552]
[1773399069449,1.67532046,2132.4,2132.0,1.551]
[1773399070340,0.002,2132.2,2132.0,1.551]
[1773399070547,0.50291573,2132.2,2131.7,0.001]
[1773399070852,0.50091573,2132.0,2131.7,0.001]
[1773399071820,0.50091573,2132.0,2131.8,1.55]
[1773399072753,0.50091573,2131.9,2131.8,1.55]
[1773399073345,0.50091573,2131.9,2131.7,1.55]
[1773399074451,0.50091573,2131.9,2131.3,0.001]
[1773399074639,0.50091573,2131.7,2131.3,0.001]
[1773399075719,0.50091573,2131.7,2131.4,1.548]
[1773399075950,1.17271789,2131.8,2131.4,1.548]
[1773399076253,1.67363362,2131.8,2131.4,1.548]
[1773399077650,0.50091573,2132.0,2131.4,3.13540258]
[1773399078640,1.17264256,2132.0,2131.5,0.41387062]
[1773399079857,1.67543418,2132.2,2131.5,0.41387062]
[1773399080053,0.50091573,2132.0,2131.3,3.13226877]
[1773399080736,1.17266288,2131.9,2131.3,3.13226877]
[1773399081038,1.67884211,2131.9,2131.3,3.13226877]
[1773399081233,0.50617923,2131.8,2131.4,1.544]
[1773399081859,0.50617923,2131.8,2131.3,0.001]
[1773399082029,0.50617923,2131.7,2131.3,0.001]
[1773399082355,3.97796284,2131.9,2131.3,0.001]
[1773399082356,1.67884211,2131.9,2131.3,1.17397357]
[1773399082556,1.67884211,2131.9,2131.3,1.58552562]
[1773399082857,1.67884211,2131.9,2131.3,1.58553769]
[1773399083357,1.67884211,2131.9,2131.4,1.544]
[1773399083932,1.67884211,2131.9,2131.3,0.41255205]
[1773399084134,0.50617923,2131.8,2131.4,1.544]
[1773399084654,0.50617923,2131.8,2131.5,0.001]
[1773399084828,0.50617923,2131.8,2131.6,1.543]
[1773399085030,1.1727729,2131.7,2131.6,1.543]
[1773399085538,0.50817923,2131.8,2131.6,1.543]
[1773399085740,1.68090416,2131.8,2131.6,1.543]
[1773399085925,0.002,2131.8,2131.6,1.543]
[1773399087457,0.002,2131.8,2131.3,5.45341283]
[1773399087458,0.50617923,2131.7,2131.3,0.001]
[1773399087661,0.002,2131.8,2131.3,0.001]
[1773399087973,0.002,2131.8,2131.3,0.40926904]
[1773399089460,0.002,2131.8,2131.3,1.58221148]
[1773399089666,0.002,2131.8,2131.4,0.4072243]
[1773399089837,1.17266586,2131.9,2131.4,0.4072243]
[1773399090034,1.17266586,2131.9,2131.5,0.001]
[1773399090934,1.17266586,2131.9,2131.6,1.541]
[1773399092167,4.69243344,2132.0,2131.6,1.541]
[1773399092668,5.19861267,2132.0,2131.6,1.541]
[1773399096974,0.50617923,2131.9,2131.6,1.541]
[1773399098447,0.50617923,2131.9,2131.2,0.001]
[1773399098746,0.50617923,2131.7,2131.2,0.002]
[1773399098958,0.50617923,2131.7,2131.4,0.001]
[1773399099164,1.17282792,2131.6,2131.4,0.001]
[1773399099363,1.67898677,2131.7,2131.4,0.002]
[1773399099674,1.67898677,2131.7,2131.5,1.538]
[1773399100076,1.67898677,2131.7,2131.4,0.002]
[1773399101392,1.67898677,2131.7,2131.5,1.537]
[1773399102668,0.002,2131.8,2131.5,1.537]
[1773399102883,1.17473091,2131.8,2131.6,0.001]
[1773399103454,1.68091014,2131.8,2131.4,0.001]
[1773399103795,0.50617923,2131.7,2131.4,0.001]
[1773399104287,1.17473091,2131.8,2131.4,0.001]
[1773399104658,1.68091014,2131.8,2131.4,0.001]
[1773399104852,1.68091014,2131.8,2131.5,1.534]
[1773399105389,0.51526906,2131.7,2131.4,0.001]
[1773399105600,0.51526906,2131.7,2131.4,1.534]
[1773399105886,0.51526906,2131.7,2131.4,1.535]
[1773399106377,0.51526906,2131.6,2131.4,1.535]
[1773399106579,0.51526906,2131.6,2131.4,0.001]
[1773399106778,0.51526906,2131.6,2131.5,1.533]
[1773399107084,0.51526906,2131.6,2131.2,0.001]
[1773399107085,0.51526906,2131.6,2131.3,0.001]
[1773399108171,1.17288294,2131.5,2131.3,0.001]
[1773399108595,1.17288294,2131.5,2131.4,1.531]
[1773399110096,1.17288294,2131.5,2131.3,0.001]
[1773399111374,1.17288294,2131.5,2131.2,0.001]
[1773399111588,1.17288294,2131.5,2131.3,0.001]
[1773399111898,1.67490213,2131.5,2131.2,0.002]
[1773399112200,1.67490213,2131.5,2131.2,0.001]
[1773399112499,0.50201919,2131.4,2131.2,0.001]
[1773399112969,0.002,2131.3,2131.2,0.001]
[1773399113676,0.002,2131.3,2131.2,1.527]
[1773399114202,0.002,2131.3,2131.1,0.001]
[1773399114398,1.67701219,2131.3,2131.2,0.001]
[1773399114971,0.50201919,2131.2,2130.7,0.001]
[1773399115303,0.50201919,2131.0,2130.5,0.001]
[1773399115667,0.50201919,2131.0,2130.3,0.001]
[1773399116077,0.50201919,2131.0,2130.4,1.523]
[1773399116292,0.50201919,2130.8,2130.4,1.523]
[1773399118481,1.67532046,2130.8,2130.4,1.523]
[1773399120314,0.50201919,2130.7,2130.5,1.519]
[1773399120629,4.69286968,2130.9,2130.5,1.91305635]
[1773399120985,2.24648736,2131.6,2130.5,1.91305635]
[1773399120986,0.002,2131.8,2130.8,0.18773529]
[1773399121194,0.50201919,2131.8,2131.2,0.18773529]
[1773399122219,0.50201919,2131.8,2131.3,1.518]
[1773399123832,1.1727729,2131.7,2131.3,1.518]
[1773399125916,1.1727729,2131.7,2131.5,0.001]
[1773399126116,0.002,2131.6,2131.5,0.001]
[1773399127009,0.002,2131.6,2131.0,0.001]
[1773399127010,0.50401919,2131.6,2131.0,0.001]
[1773399127337,0.50401919,2131.6,2130.3,0.19013584]
[1773399127540,0.50201919,2131.4,2130.3,0.001]
[1773399128033,0.50201919,2131.2,2130.3,0.001]
[1773399128442,0.50201919,2131.2,2130.4,1.509]
[1773399129404,0.50201919,2131.2,2130.3,0.001]
[1773399129405,0.50201919,2131.2,2130.5,1.51]
[1773399130133,0.50201919,2131.0,2130.2,0.001]
[1773399131275,0.50201919,2131.0,2130.3,1.51]
[1773399132069,0.50201919,2130.8,2130.2,0.001]
[1773399133572,0.50201919,2130.8,2130.2,1.508]
[1773399134175,0.50201919,2130.8,2130.0,0.001]
[1773399134176,0.50201919,2130.6,2130.0,0.001]
[1773399134378,0.50201919,2130.6,2129.8,0.001]
[1773399135467,0.50201919,2130.6,2129.8,0.21482957]
[1773399135775,0.50201919,2130.6,2130.0,0.21663804]
[1773399136360,1.17343346,2130.5,2130.0,1.3903148]
[1773399136555,0.50201919,2130.6,2130.0,1.3903148]
[1773399136749,0.50201919,2131.2,2130.1,0.2194147]
[1773399137080,1.172993,2131.3,2130.1,0.2194147]
[1773399137081,0.50201919,2131.1,2130.1,0.2194147]
[1773399137949,0.50201919,2131.1,2130.2,1.506]
[1773399138284,0.50201919,2131.1,2130.3,1.506]
[1773399139173,0.50201919,2131.0,2130.4,1.17348854]
[1773399140380,0.50201919,2131.0,2130.3,2.90438084]
[1773399140578,0.50201919,2131.0,2130.3,1.39838084]
[1773399140779,0.50201919,2131.0,2130.4,1.505]
[1773399141171,0.50347057,2130.8,2130.1,0.23282963]
[1773399141493,0.50347057,2130.8,2130.2,1.505]
[1773399143074,0.50347057,2130.8,2130.0,0.001]
[1773399143274,0.50347057,2130.6,2130.1,1.501]
[1773399143796,0.50347057,2130.6,2129.8,0.001]
[1773399145016,1.17332332,2130.7,2129.5,0.001]
[1773399145017,1.90111414,2130.4,2129.5,0.001]
[1773399145173,0.50347057,2130.1,2129.5,0.001]
[1773399146521,0.50347057,2130.1,2129.6,1.491]
[1773399147151,0.50347057,2130.1,2128.8,0.24895261]
[1773399147446,0.50347057,2129.6,2128.9,0.24895261]
[1773399148811,0.50347057,2129.6,2129.0,1.478]
[1773399149014,1.17387425,2129.7,2128.7,0.25476357]
[1773399149015,0.50347057,2129.4,2128.7,0.25476357]
[1773399149314,1.67754868,2129.4,2128.7,1.4291697]
[1773399149532,1.17392937,2129.6,2128.8,0.25376357]
[1773399150227,1.67739994,2129.6,2128.8,0.25376357]
[1773399151038,0.50347057,2129.5,2128.8,0.25376357]
[1773399151343,1.6775102,2129.4,2128.9,1.474]
[1773399151526,0.50347057,2129.3,2129.0,1.474]
[1773399151736,0.50347057,2129.3,2129.0,1.475]
[1773399151913,0.50347057,2129.3,2129.0,0.001]
[1773399152113,0.50347057,2129.3,2128.7,0.001]
[1773399153433,1.17420506,2129.1,2128.7,0.001]
[1773399153657,0.12,2129.0,2128.7,0.001]
[1773399153840,1.1741164,2129.3,2128.8,1.479]
[1773399154443,0.50347057,2129.3,2128.8,1.479]
[1773399154645,0.50347057,2129.7,2128.9,0.14533061]
[1773399155455,1.67739994,2129.6,2129.0,1.481]
[1773399155973,1.67739994,2129.6,2128.9,1.31959454]
[1773399155974,0.50347057,2129.5,2129.1,1.482]
[1773399156340,0.50347057,2129.5,2128.9,1.17426393]
[1773399156552,0.50347057,2129.5,2129.2,1.482]
[1773399157960,0.50347057,2129.8,2129.3,1.484]
[1773399159670,0.50347057,2129.8,2129.1,0.15668759]
[1773399159859,1.67729093,2129.8,2129.3,1.17409477]
[1773399160366,1.17380636,2129.9,2129.3,1.17409477]
[1773399161462,1.67727693,2129.9,2129.2,1.33300466]
[1773399161662,0.50347057,2129.8,2129.2,1.33300466]
[1773399161855,1.67734482,2129.7,2129.3,1.486]
[1773399162255,1.67734482,2129.7,2129.2,1.17414807]
[1773399162468,1.67734482,2129.7,2129.4,1.486]
[1773399162863,0.50347057,2129.7,2129.1,4.8620996]
[1773399163072,0.50347057,2129.6,2128.8,0.16530958]
[1773399163573,0.50347057,2130.2,2128.9,0.16530958]
[1773399163742,0.50347057,2130.1,2128.9,0.16530958]
[1773399163946,0.50347057,2129.9,2129.1,0.16740478]
[1773399164162,0.50347057,2129.9,2129.2,1.487]
[1773399164944,0.002,2129.7,2129.2,1.65853038]
[1773399166279,0.002,2129.7,2129.2,2.83263652]
[1773399166779,0.002,2129.7,2129.3,1.488]
[1773399168178,0.002,2129.7,2129.4,1.17403963]
[1773399168382,0.002,2129.9,2129.5,0.17753598]
[1773399170188,0.002,2129.9,2129.6,1.35335909]
[1773399170873,0.002,2129.9,2129.7,0.1832271]
[1773399171469,1.73054407,2130.5,2129.7,0.1832271]
[1773399171667,1.73051002,2130.5,2129.7,0.1832271]
[1773399172377,1.73051002,2130.5,2129.9,0.18509309]
[1773399172566,0.55706539,2130.4,2129.6,0.1869365]
[1773399172766,0.55706539,2130.4,2129.7,1.49]
[1773399172989,0.55706539,2130.4,2129.8,1.49]
[1773399174366,0.55706539,2130.2,2129.8,1.49]
[1773399174768,0.55706539,2130.2,2129.9,1.491]
[1773399175177,0.55706539,2130.2,2129.5,1.17398316]
[1773399175597,0.55706539,2130.2,2129.5,1.36454883]
[1773399175793,0.55706539,2130.2,2129.6,0.19234349]
[1773399176297,0.55706539,2130.2,2129.7,1.492]
[1773399176506,1.73068588,2130.2,2129.7,2.66584068]
[1773399177992,1.73068588,2130.2,2129.8,0.04695276]
[1773399179073,0.002,2130.0,2129.8,0.04695276]
[1773399182806,0.002,2130.2,2129.8,1.42495805]
[1773399184409,0.002,2130.2,2129.8,1.37800529]
[1773399184806,0.55906539,2130.2,2129.9,1.493]
[1773399186110,0.002,2130.2,2129.9,1.493]
[1773399186312,0.002,2130.2,2129.9,2.66675765]
[1773399186521,0.002,2130.2,2129.9,1.493]
[1773399187287,0.002,2130.2,2129.8,1.17377429]
[1773399187288,0.55906539,2130.2,2130.0,1.493]
[1773399189214,1.73270477,2130.2,2130.0,1.493]
[1773399189598,0.55906539,2130.2,2130.0,1.493]
[1773399191807,1.73266596,2130.2,2130.0,1.493]
[1773399192006,1.73266596,2130.2,2129.8,1.17381856]
[1773399192318,0.55906539,2130.2,2130.0,0.001]
[1773399193018,1.73269073,2130.2,2130.0,0.001]
[1773399193430,1.73269073,2130.2,2130.1,1.495]
[1773399194121,0.55906539,2130.2,2130.1,1.495]
[1773399194905,1.73266411,2130.2,2130.1,1.495]
[1773399195226,1.73266411,2130.2,2129.8,0.001]
[1773399195227,0.55706539,2130.1,2129.8,0.001]
[1773399195395,0.55706539,2130.1,2129.7,0.001]
[1773399195600,0.55706539,2130.1,2129.7,0.002]
[1773399195895,1.17560339,2130.2,2129.8,0.22394754]
[1773399196095,1.17560339,2130.2,2129.7,0.001]
[1773399196096,0.55706539,2130.1,2129.7,0.001]
[1773399196307,0.55706539,2130.1,2129.8,1.493]
[1773399197338,0.55706539,2130.1,2129.5,0.001]
[1773399197625,0.55706539,2130.0,2129.5,0.001]
[1773399197933,1.73082941,2129.9,2129.5,0.001]
[1773399198106,0.55706539,2129.8,2129.6,0.001]
[1773399198423,1.73081576,2130.0,2129.6,0.001]
[1773399198721,1.73081576,2130.0,2129.7,1.495]
[1773399198926,1.73081576,2130.0,2129.7,1.494]
[1773399199310,0.55706539,2129.9,2129.7,1.494]
[1773399200322,1.17381913,2129.8,2129.5,0.001]
[1773399200528,1.73088452,2129.8,2129.6,0.001]
[1773399200715,0.57740585,2129.7,2129.6,0.001]
[1773399201027,0.57740585,2129.7,2129.2,1.40719039]
[1773399201324,1.17381913,2129.8,2129.3,0.23205602]
[1773399201525,1.75122498,2129.8,2129.3,0.23205602]
[1773399201826,1.75122498,2129.8,2129.4,1.494]
[1773399203909,1.75122498,2129.8,2129.5,1.495]
[1773399203910,0.57740585,2129.7,2129.5,1.495]
[1773399204117,0.57740585,2129.7,2129.2,0.001]
[1773399204415,0.57740585,2129.5,2129.2,0.001]
[1773399205401,0.57740585,2129.5,2129.4,0.001]
[1773399205601,0.57740585,2129.5,2129.2,0.001]
[1773399205830,0.57740585,2129.5,2128.9,0.001]
[1773399206175,0.57740585,2129.5,2129.1,0.001]
[1773399206432,0.57740585,2129.5,2128.9,0.001]
[1773399206433,0.57740585,2129.3,2128.9,0.001]
[1773399206629,0.57740585,2129.3,2128.7,0.001]
[1773399206832,0.57740585,2129.2,2128.7,0.001]
[1773399207541,0.57740585,2129.2,2128.5,0.001]
[1773399207542,0.57740585,2129.1,2128.5,0.001]
[1773399207832,0.57740585,2129.0,2128.5,1.496]
[1773399208403,0.57740585,2128.8,2128.5,1.496]
[1773399209427,1.17431537,2128.9,2128.5,1.496]
[1773399209632,1.75167823,2129.0,2128.5,2.67053145]
[1773399209823,1.75167823,2129.0,2128.5,1.73923814]
[1773399210050,1.75167823,2129.0,2128.5,2.91377048]
[1773399210235,1.75167823,2129.0,2128.5,2.91377249]
[1773399210953,0.57740585,2128.9,2128.6,1.484]
[1773399211132,0.57740585,2128.9,2128.5,0.001]
[1773399211331,0.57740585,2128.9,2128.6,1.484]
[1773399212031,0.57740585,2128.9,2128.5,0.001]
[1773399212542,0.57740585,2128.7,2128.3,0.001]
[1773399212944,1.75176486,2128.9,2128.3,0.2487133]
[1773399213683,1.75176486,2128.9,2128.3,0.001]
[1773399213684,0.57740585,2128.8,2128.3,0.001]
[1773399213857,0.57740585,2128.8,2128.4,1.486]
[1773399214349,0.57740585,2128.8,2128.3,0.001]
[1773399214549,0.57740585,2128.8,2128.5,1.486]
[1773399214860,0.57740585,2129.0,2128.5,1.486]
[1773399215058,0.57740585,2129.0,2128.5,2.91048671]
[1773399215256,0.57740585,2129.0,2128.4,1.17456986]
[1773399215461,0.57740585,2129.0,2128.6,1.486]
[1773399216675,1.17431537,2128.9,2128.6,1.486]
[1773399217251,1.75172122,2128.9,2128.6,1.486]
[1773399217632,0.57740585,2128.9,2128.6,1.486]
[1773399217866,0.57740585,2128.9,2128.3,0.001]
[1773399218161,0.57740585,2128.9,2128.4,1.482]
[1773399218334,0.57740585,2128.9,2128.3,0.001]
[1773399218533,0.57740585,2128.9,2128.4,1.475]
[1773399218862,0.57740585,2128.7,2128.5,0.001]
[1773399219040,0.57740585,2128.7,2128.0,0.001]
[1773399219041,0.57940585,2128.7,2128.0,0.001]
[1773399220454,0.57940585,2128.7,2128.1,1.477]
[1773399221067,1.75188672,2128.6,2128.1,1.477]
[1773399221575,0.57740585,2128.5,2128.0,0.001]
[1773399221754,0.57740585,2128.5,2128.2,1.478]
[1773399222145,0.57740585,2128.5,2128.0,0.001]
[1773399223151,0.57740585,2128.3,2128.0,0.001]
[1773399223850,0.57740585,2128.3,2128.1,1.479]
[1773399224049,0.57740585,2128.3,2128.0,0.001]
[1773399225460,1.7498565,2128.2,2128.0,0.001]
[1773399225779,0.57515488,2128.2,2128.0,0.001]
[1773399225949,1.7497848,2128.4,2128.1,1.48]
[1773399226972,0.57515488,2128.6,2128.1,1.76717531]
[1773399227844,0.57515488,2128.6,2128.2,1.17470162]
[1773399228044,0.002,2128.7,2128.2,1.46285023]
[1773399228259,1.17643205,2128.7,2128.2,1.46285023]
[1773399228568,1.17643205,2128.7,2128.2,0.28814861]
[1773399229237,0.002,2128.9,2128.2,0.28911047]
[1773399229646,1.17632648,2128.9,2128.2,0.28911047]
[1773399230169,0.002,2128.9,2128.4,0.37791287]
[1773399231276,0.002,2128.9,2128.4,0.37891287]
[1773399231444,0.002,2128.6,2128.4,0.37891287]
[1773399231974,0.002,2128.6,2128.4,1.55345558]
[1773399233053,0.002,2128.6,2128.4,1.17554271]
[1773399233242,0.002,2128.8,2128.5,1.482]
[1773399233445,0.002,2128.8,2128.4,0.001]
[1773399233645,0.002,2128.8,2128.5,1.483]
[1773399236876,0.002,2128.8,2128.4,1.17558855]
[1773399236877,0.002,2128.8,2128.6,1.485]
[1773399239579,0.002,2128.9,2128.6,3.0449543]
[1773399240874,0.002,2128.9,2128.6,1.87049963]
[1773399241579,0.002,2128.9,2128.6,1.485]
[1773399242082,0.57912483,2128.9,2128.6,1.485]
[1773399243085,0.57912483,2128.9,2128.4,0.001]
[1773399243694,1.17437053,2128.8,2128.4,0.001]
[1773399243852,1.75149536,2128.8,2128.4,0.001]
[1773399244292,1.75149536,2128.8,2128.5,1.49]
[1773399244474,1.75149536,2128.8,2128.4,0.001]
[1773399244651,1.75149536,2128.8,2128.5,1.49]
[1773399245183,0.002,2128.6,2128.5,1.49]
[1773399245685,0.002,2128.6,2128.4,0.001]
[1773399245867,0.002,2128.6,2128.5,1.49]
[1773399246385,0.57912483,2128.6,2128.4,0.001]
[1773399247680,0.57912483,2128.6,2128.5,1.492]
[1773399248103,0.57712483,2128.5,2128.1,0.001]
[1773399249661,0.57712483,2128.5,2128.1,1.493]
[1773399250055,0.57712483,2128.5,2127.9,0.001]
[1773399250056,0.57712483,2128.3,2127.9,0.001]
[1773399251767,0.57712483,2128.3,2128.0,1.493]
[1773399252285,1.17470162,2128.2,2127.9,0.001]
[1773399252596,0.57712483,2128.1,2128.0,1.494]
[1773399252885,1.75181629,2128.3,2128.0,1.494]
[1773399253081,0.57712483,2128.2,2128.0,1.494]
[1773399254091,0.57712483,2128.2,2127.9,0.001]
[1773399254263,0.57712483,2128.2,2128.0,1.494]
[1773399254465,0.57712483,2128.1,2128.0,1.494]
[1773399256063,0.57712483,2128.1,2127.9,0.001]
[1773399256264,0.57712483,2128.1,2128.0,1.494]
[1773399257162,0.57712483,2128.1,2127.9,0.001]
[1773399257360,0.57712483,2128.1,2128.0,0.001]
[1773399257995,1.75177589,2128.3,2128.0,0.001]
[1773399258169,0.57712483,2128.2,2128.0,0.001]
[1773399258563,0.57712483,2128.2,2128.1,1.495]
[1773399260300,1.75182645,2128.2,2128.0,0.001]
[1773399261886,1.75182645,2128.2,2128.1,1.495]
[1773399262867,0.57712483,2128.2,2128.1,1.495]
[1773399263284,1.17457265,2128.5,2128.1,1.96954598]
[1773399263592,1.17457265,2128.5,2128.2,0.47454598]
[1773399263784,1.77384555,2128.5,2128.1,1.495]
[1773399264164,0.5992729,2128.4,2128.0,0.001]
[1773399264570,0.5992729,2128.4,2128.1,1.495]
[1773399264887,0.5992729,2128.4,2128.2,1.494]
[1773399265067,0.5992729,2128.2,2128.0,0.001]
[1773399266684,0.5992729,2128.2,2128.1,1.494]
[1773399267094,1.77399305,2128.2,2128.0,0.001]
[1773399267680,0.5992729,2128.1,2127.7,0.47981447]
[1773399268478,0.5992729,2128.1,2127.7,1.65474389]
[1773399268727,0.5992729,2128.1,2127.8,1.494]
[1773399269701,1.77404089,2128.1,2127.8,1.494]
[1773399269899,0.002,2128.0,2127.8,1.494]
[1773399270107,0.002,2128.0,2127.9,1.494]
[1773399271104,0.002,2128.0,2127.7,0.47981447]
[1773399272027,0.6012729,2128.0,2127.7,0.001]
[1773399272928,0.6012729,2128.0,2127.8,1.494]
[1773399274120,1.7761201,2128.0,2127.8,1.494]
[1773399274497,0.002,2128.0,2127.9,0.48249902]
[1773399275202,0.002,2128.0,2127.8,1.494]
[1773399276640,0.002,2128.0,2127.9,0.55568023]
[1773399277002,0.002,2128.0,2127.9,2.04968023]
[1773399279522,0.002,2128.0,2127.9,1.494]
[1773399280709,0.002,2128.0,2127.9,2.05192363]
[1773399280907,0.002,2128.2,2128.0,0.55592363]
[1773399282731,0.002,2128.2,2128.1,1.494]
[1773399284216,0.6012729,2128.2,2128.1,1.494]
[1773399284535,0.6012729,2128.2,2128.1,1.495]
[1773399285129,0.6012729,2128.2,2128.0,0.001]
[1773399285130,1.77597452,2128.2,2128.0,0.001]
[1773399285444,0.59221086,2128.1,2128.0,0.001]
[1773399285615,0.59221086,2128.1,2128.0,1.496]
[1773399285940,0.59221086,2128.1,2128.0,1.495]
[1773399286143,0.59221086,2128.1,2127.7,0.001]
[1773399286440,0.59221086,2128.1,2127.2,4.70098935]
[1773399286441,0.63588035,2128.0,2127.2,4.70098935]
[1773399286609,0.63588035,2128.0,2127.2,0.001945]
[1773399287117,0.63588035,2127.8,2127.2,0.001945]
[1773399287316,0.63588035,2127.8,2127.3,1.495]
[1773399287518,0.63588035,2127.8,2127.2,0.001945]
[1773399287727,0.63588035,2127.8,2127.3,1.495]
[1773399287911,0.63588035,2127.8,2127.2,0.001945]
[1773399288115,0.63588035,2127.8,2127.3,1.495]
[1773399288442,0.63588035,2127.8,2127.4,0.0018738]
[1773399289030,0.63588035,2127.8,2127.5,1.496]
[1773399289216,1.81083849,2127.8,2127.5,1.495]
[1773399289417,0.63588035,2127.7,2127.5,1.495]
[1773399289920,0.63588035,2127.7,2127.6,1.495]
[1773399291736,1.81085802,2127.7,2127.5,0.001]
[1773399292049,1.81085802,2127.7,2127.6,1.494]
[1773399292251,0.63588035,2127.7,2127.6,1.494]
[1773399292555,0.63588035,2127.8,2127.6,1.494]
[1773399292753,0.63588035,2127.8,2127.7,1.494]
[1773399293159,0.63588035,2127.8,2127.5,0.001]
[1773399293538,1.81085802,2127.7,2127.5,0.001]
[1773399293848,0.63588035,2127.7,2127.5,0.001]
[1773399294669,0.63588035,2127.7,2127.6,1.494]
[1773399295236,0.63588035,2127.7,2127.2,1.18333285]
[1773399295441,1.17496596,2127.8,2127.2,1.18333285]
[1773399295442,1.81091325,2127.6,2127.3,1.495]
[1773399296132,0.63588035,2127.6,2127.3,2.67015754]